[Event "Titled Tuesday Blitz February 21 Early 2023"]
[White "Papasimakopoulos, Alexandros"]
[Black "Lymar, Vladislav"]
[WhiteFideId "4244125"]
[BlackFideId "14162180"]
[WhiteElo "2401"]
[BlackElo "2119"]
[Result "0-1"]
[Round "05"]
[TimeControl "180+2"]
[Date "2023.02.21"]
[WhiteClock "0:00:16"]
[BlackClock "0:00:54"]

1. d4 {[%clk 0:02:14]}  d5 {[%clk 0:03:00]} 2. c4 {[%clk 0:02:14]}  e6 {[%clk 0:03:00]} 3. Nc3 {[%clk 0:02:13]}  c5 {[%clk 0:03:01]} 4. cxd5 {[%clk 0:02:13]}  exd5 {[%clk 0:03:02]} 5. Nf3 {[%clk 0:02:13]}  Nc6 {[%clk 0:03:02]} 6. Bg5 {[%clk 0:02:13]}  Be7 {[%clk 0:03:01]} 7. Bxe7 {[%clk 0:02:14]}  Ngxe7 {[%clk 0:03:02]} 8. g3 {[%clk 0:02:10]}  c4 {[%clk 0:03:00]} 9. Bg2 {[%clk 0:02:09]}  O-O {[%clk 0:02:58]} 10. O-O {[%clk 0:02:09]}  Be6 {[%clk 0:02:51]} 11. Ng5 {[%clk 0:02:03]}  Qb6 {[%clk 0:02:47]} 12. Qc2 {[%clk 0:01:45]}  Bf5 {[%clk 0:02:39]} 13. Qc1 {[%clk 0:01:45]}  Nxd4 {[%clk 0:02:31]} 14. e3 {[%clk 0:01:43]}  Ne6 {[%clk 0:02:27]} 15. Nxe6 {[%clk 0:01:26]}  Bxe6 {[%clk 0:02:15]} 16. Rd1 {[%clk 0:01:24]}  Rfd8 {[%clk 0:02:14]} 17. Qc2 {[%clk 0:01:21]}  Qc5 {[%clk 0:01:55]} 18. Rd2 {[%clk 0:01:17]}  b5 {[%clk 0:01:48]} 19. Rad1 {[%clk 0:01:16]}  Rd7 {[%clk 0:01:44]} 20. Ne2 {[%clk 0:01:05]}  Rad8 {[%clk 0:01:41]} 21. a3 {[%clk 0:00:56]}  Nc6 {[%clk 0:01:27]} 22. Nd4 {[%clk 0:00:54]}  Ne5 {[%clk 0:01:21]} 23. e4 {[%clk 0:00:39]}  dxe4 {[%clk 0:01:02]} 24. Nxe6 {[%clk 0:00:38]}  Rxd2 {[%clk 0:01:02]} 25. Nxc5 {[%clk 0:00:35]}  Rxd1+ {[%clk 0:01:01]} 26. Bf1 {[%clk 0:00:35]}  Nf3+ {[%clk 0:01:02]} 27. Kg2 {[%clk 0:00:33]}  Ne1+ {[%clk 0:01:03]} 28. Kh3 {[%clk 0:00:33]}  Nxc2 {[%clk 0:01:03]} 29. Bg2 {[%clk 0:00:34]}  e3 {[%clk 0:01:00]} 30. fxe3 {[%clk 0:00:23]}  Nxe3 {[%clk 0:01:01]} 31. Bf3 {[%clk 0:00:23]}  R1d5 {[%clk 0:01:00]} 32. Nb7 {[%clk 0:00:21]}  R8d7 {[%clk 0:00:56]} 33. Na5 {[%clk 0:00:21]}  Rf5 {[%clk 0:00:55]} 34. Be2 {[%clk 0:00:19]}  Rdd5 {[%clk 0:00:54]} 35. g4 {[%clk 0:00:19]}  Rf2 {[%clk 0:00:54]} 36. Nc6 {[%clk 0:00:15]}  Rxe2 {[%clk 0:00:53]} 37. Ne7+ {[%clk 0:00:15]}  Kf8 {[%clk 0:00:53]} 38. Nxd5 {[%clk 0:00:16]}  Nxd5 {[%clk 0:00:54]} 0-1


[Site "https://www.chess.com"]

[Event "Titled Tuesday Blitz February 21 Early 2023"]
[White "Skvortsov, Andrei"]
[Black "Cunha, Lucas Aguiar"]
[WhiteFideId "24108600"]
[BlackFideId "2125404"]
[WhiteElo "2313"]
[BlackElo "2309"]
[Result "1-0"]
[Round "05"]
[TimeControl "180+2"]
[Date "2023.02.21"]
[WhiteClock "0:00:15"]
[BlackClock "0:00:12"]

1. c4 {[%clk 0:02:57]}  e6 {[%clk 0:02:59]} 2. Nc3 {[%clk 0:02:57]}  d5 {[%clk 0:02:58]} 3. cxd5 {[%clk 0:02:58]}  exd5 {[%clk 0:02:57]} 4. d4 {[%clk 0:02:59]}  Be7 {[%clk 0:02:56]} 5. Nf3 {[%clk 0:02:56]}  c6 {[%clk 0:02:53]} 6. Bf4 {[%clk 0:02:52]}  g6 {[%clk 0:02:53]} 7. e3 {[%clk 0:02:50]}  Bf5 {[%clk 0:02:52]} 8. Bd3 {[%clk 0:02:49]}  Bxd3 {[%clk 0:02:52]} 9. Qxd3 {[%clk 0:02:50]}  Nf6 {[%clk 0:02:52]} 10. h3 {[%clk 0:02:48]}  O-O {[%clk 0:02:52]} 11. g4 {[%clk 0:02:42]}  Nbd7 {[%clk 0:02:52]} 12. Ne5 {[%clk 0:02:39]}  Re8 {[%clk 0:02:42]} 13. Nxd7 {[%clk 0:02:34]}  Qxd7 {[%clk 0:02:30]} 14. f3 {[%clk 0:02:32]}  Bd6 {[%clk 0:02:22]} 15. Bg5 {[%clk 0:02:23]}  Bg3+ {[%clk 0:02:21]} 16. Kd2 {[%clk 0:02:23]}  Re6 {[%clk 0:02:17]} 17. Bxf6 {[%clk 0:02:17]}  Rxf6 {[%clk 0:02:17]} 18. f4 {[%clk 0:02:17]}  Re8 {[%clk 0:02:11]} 19. Raf1 {[%clk 0:02:08]}  Qe7 {[%clk 0:01:56]} 20. g5 {[%clk 0:02:00]}  Re6 {[%clk 0:01:55]} 21. Rf3 {[%clk 0:01:59]}  Bh4 {[%clk 0:01:55]} 22. a3 {[%clk 0:01:52]}  f5 {[%clk 0:01:44]} 23. gxf6 {[%clk 0:01:47]}  Qxf6 {[%clk 0:01:41]} 24. Rg1 {[%clk 0:01:36]}  Kh8 {[%clk 0:01:31]} 25. f5 {[%clk 0:01:25]}  gxf5 {[%clk 0:01:27]} 26. Ne2 {[%clk 0:01:21]}  Qh6 {[%clk 0:01:20]} 27. Nf4 {[%clk 0:01:07]}  R6e7 {[%clk 0:01:19]} 28. Qxf5 {[%clk 0:01:02]}  Rf8 {[%clk 0:01:11]} 29. Qxf8+ {[%clk 0:00:33]}  Qxf8 {[%clk 0:01:10]} 30. Ng6+ {[%clk 0:00:33]}  hxg6 {[%clk 0:01:11]} 31. Rxf8+ {[%clk 0:00:33]}  Kg7 {[%clk 0:01:12]} 32. Rf3 {[%clk 0:00:32]}  b6 {[%clk 0:01:06]} 33. Rg4 {[%clk 0:00:32]}  Bf6 {[%clk 0:01:04]} 34. Rfg3 {[%clk 0:00:32]}  c5 {[%clk 0:00:59]} 35. Rxg6+ {[%clk 0:00:32]}  Kf7 {[%clk 0:00:58]} 36. R6g4 {[%clk 0:00:28]}  cxd4 {[%clk 0:00:54]} 37. exd4 {[%clk 0:00:28]}  Re6 {[%clk 0:00:45]} 38. Rf3 {[%clk 0:00:26]}  Ke7 {[%clk 0:00:44]} 39. b3 {[%clk 0:00:23]}  a6 {[%clk 0:00:37]} 40. Rf5 {[%clk 0:00:22]}  Kd6 {[%clk 0:00:34]} 41. a4 {[%clk 0:00:20]}  a5 {[%clk 0:00:33]} 42. Kd3 {[%clk 0:00:19]}  Bd8 {[%clk 0:00:28]} 43. Rg8 {[%clk 0:00:19]}  Be7 {[%clk 0:00:26]} 44. Rb8 {[%clk 0:00:18]}  Kc7 {[%clk 0:00:25]} 45. Rg8 {[%clk 0:00:18]}  Kd6 {[%clk 0:00:25]} 46. Rg4 {[%clk 0:00:17]}  Re1 {[%clk 0:00:24]} 47. Rg6+ {[%clk 0:00:16]}  Kc7 {[%clk 0:00:24]} 48. Rxd5 {[%clk 0:00:16]}  Rd1+ {[%clk 0:00:24]} 49. Kc2 {[%clk 0:00:16]}  Rh1 {[%clk 0:00:24]} 50. Rg7 {[%clk 0:00:16]}  Kc6 {[%clk 0:00:24]} 51. Rh5 {[%clk 0:00:16]}  Rh2+ {[%clk 0:00:24]} 52. Kd3 {[%clk 0:00:16]}  Bd6 {[%clk 0:00:19]} 53. Rg6 {[%clk 0:00:17]}  Rb2 {[%clk 0:00:12]} 54. Kc3 {[%clk 0:00:15]} 1-0


[Site "https://www.chess.com"]

[Event "Titled Tuesday Blitz February 21 Early 2023"]
[White "Stijve, Theo"]
[Black "Delorme, Axel"]
[WhiteFideId "1331132"]
[BlackFideId "632023"]
[WhiteElo "2351"]
[BlackElo "2483"]
[Result "1-0"]
[Round "05"]
[TimeControl "180+2"]
[Date "2023.02.21"]
[WhiteClock "0:00:41"]
[BlackClock "0:00:03"]

1. e4 {[%clk 0:02:59]}  c5 {[%clk 0:02:59]} 2. Nf3 {[%clk 0:02:57]}  d6 {[%clk 0:02:59]} 3. d4 {[%clk 0:02:57]}  cxd4 {[%clk 0:03:00]} 4. Nxd4 {[%clk 0:02:57]}  Nf6 {[%clk 0:03:01]} 5. Nc3 {[%clk 0:02:58]}  a6 {[%clk 0:03:02]} 6. Be3 {[%clk 0:02:57]}  e5 {[%clk 0:03:00]} 7. Nb3 {[%clk 0:02:58]}  Be6 {[%clk 0:03:00]} 8. f3 {[%clk 0:02:58]}  Be7 {[%clk 0:03:00]} 9. Qd2 {[%clk 0:02:57]}  O-O {[%clk 0:03:00]} 10. O-O-O {[%clk 0:02:56]}  Nbd7 {[%clk 0:03:01]} 11. g4 {[%clk 0:02:56]}  b5 {[%clk 0:03:01]} 12. g5 {[%clk 0:02:57]}  b4 {[%clk 0:03:02]} 13. gxf6 {[%clk 0:02:57]}  bxc3 {[%clk 0:03:01]} 14. Qxc3 {[%clk 0:02:57]}  Nxf6 {[%clk 0:02:59]} 15. Na5 {[%clk 0:02:58]}  Qd7 {[%clk 0:02:49]} 16. Nc6 {[%clk 0:02:51]}  Rfc8 {[%clk 0:02:48]} 17. Nxe7+ {[%clk 0:02:50]}  Qxe7 {[%clk 0:02:49]} 18. Qa5 {[%clk 0:02:48]}  Qc7 {[%clk 0:02:30]} 19. Qxc7 {[%clk 0:02:42]}  Rxc7 {[%clk 0:02:31]} 20. Rxd6 {[%clk 0:02:42]}  Bxa2 {[%clk 0:02:24]} 21. Rxa6 {[%clk 0:02:34]}  Rxa6 {[%clk 0:02:13]} 22. Bxa6 {[%clk 0:02:35]}  Bb3 {[%clk 0:02:11]} 23. Bd3 {[%clk 0:02:24]}  Nd7 {[%clk 0:01:56]} 24. Kd2 {[%clk 0:02:19]}  Be6 {[%clk 0:01:56]} 25. Ra1 {[%clk 0:02:18]}  f6 {[%clk 0:01:52]} 26. Ra7 {[%clk 0:02:10]}  Rc8 {[%clk 0:01:46]} 27. b4 {[%clk 0:02:09]}  h5 {[%clk 0:01:31]} 28. b5 {[%clk 0:02:07]}  Kh7 {[%clk 0:01:23]} 29. c4 {[%clk 0:01:54]}  h4 {[%clk 0:01:10]} 30. b6 {[%clk 0:01:41]}  Nxb6 {[%clk 0:01:11]} 31. Bxb6 {[%clk 0:01:40]}  Bxc4 {[%clk 0:01:11]} 32. Rc7 {[%clk 0:01:31]}  Rb8 {[%clk 0:01:02]} 33. Bxc4 {[%clk 0:01:22]}  Rxb6 {[%clk 0:01:01]} 34. Bd5 {[%clk 0:01:17]}  Rb2+ {[%clk 0:00:59]} 35. Rc2 {[%clk 0:01:17]}  Rxc2+ {[%clk 0:00:38]} 36. Kxc2 {[%clk 0:01:18]}  Kh6 {[%clk 0:00:38]} 37. Kd3 {[%clk 0:01:12]}  Kg5 {[%clk 0:00:38]} 38. Ke3 {[%clk 0:01:12]}  g6 {[%clk 0:00:30]} 39. Be6 {[%clk 0:00:59]}  Kh6 {[%clk 0:00:25]} 40. Kf2 {[%clk 0:00:57]}  Kg5 {[%clk 0:00:25]} 41. Bf7 {[%clk 0:00:55]}  f5 {[%clk 0:00:16]} 42. Ke3 {[%clk 0:00:55]}  Kf6 {[%clk 0:00:15]} 43. Be8 {[%clk 0:00:55]}  Kg5 {[%clk 0:00:15]} 44. Kd3 {[%clk 0:00:48]}  Kf6 {[%clk 0:00:09]} 45. Kc4 {[%clk 0:00:45]}  fxe4 {[%clk 0:00:07]} 46. fxe4 {[%clk 0:00:45]}  g5 {[%clk 0:00:04]} 47. Bd7 {[%clk 0:00:42]}  Kg6 {[%clk 0:00:02]} 48. Kd5 {[%clk 0:00:41]}  Kh5 {[%clk 0:00:03]} 49. h3 {[%clk 0:00:41]} 1-0


[Site "https://www.chess.com"]

[Event "Titled Tuesday Blitz February 21 Early 2023"]
[White "Kramnik, Vladimir"]
[Black "Golubev, Mikhail"]
[WhiteFideId "4101588"]
[BlackFideId "14100983"]
[WhiteElo "2753"]
[BlackElo "2461"]
[Result "1-0"]
[Round "05"]
[TimeControl "180+2"]
[Date "2023.02.21"]
[WhiteClock "0:00:15"]
[BlackClock "0:00:01"]

1. Nf3 {[%clk 0:03:00]}  d6 {[%clk 0:02:59]} 2. d4 {[%clk 0:02:59]}  Nf6 {[%clk 0:02:58]} 3. g3 {[%clk 0:02:57]}  g6 {[%clk 0:02:58]} 4. Bg2 {[%clk 0:02:57]}  Bg7 {[%clk 0:02:58]} 5. O-O {[%clk 0:02:57]}  O-O {[%clk 0:02:59]} 6. Re1 {[%clk 0:02:55]}  Nbd7 {[%clk 0:02:52]} 7. e4 {[%clk 0:02:54]}  e5 {[%clk 0:02:52]} 8. Nc3 {[%clk 0:02:54]}  Re8 {[%clk 0:02:50]} 9. h3 {[%clk 0:02:51]}  b6 {[%clk 0:02:47]} 10. d5 {[%clk 0:02:48]}  a5 {[%clk 0:02:44]} 11. Bg5 {[%clk 0:02:45]}  h6 {[%clk 0:02:41]} 12. Be3 {[%clk 0:02:45]}  Nc5 {[%clk 0:02:41]} 13. Nd2 {[%clk 0:02:42]}  Nfd7 {[%clk 0:02:22]} 14. a3 {[%clk 0:02:41]}  a4 {[%clk 0:02:15]} 15. b4 {[%clk 0:02:41]}  axb3 {[%clk 0:02:14]} 16. cxb3 {[%clk 0:02:41]}  f5 {[%clk 0:02:08]} 17. exf5 {[%clk 0:02:24]}  gxf5 {[%clk 0:02:04]} 18. Qc2 {[%clk 0:02:23]}  Rf8 {[%clk 0:01:46]} 19. f4 {[%clk 0:02:08]}  e4 {[%clk 0:01:43]} 20. Bf1 {[%clk 0:02:08]}  Qf6 {[%clk 0:01:35]} 21. Nb5 {[%clk 0:02:01]}  Qg6 {[%clk 0:01:27]} 22. Kh2 {[%clk 0:02:00]}  Nf6 {[%clk 0:01:07]} 23. Bc4 {[%clk 0:01:44]}  Nh5 {[%clk 0:01:03]} 24. Nf1 {[%clk 0:01:41]}  Bxa1 {[%clk 0:00:45]} 25. Rxa1 {[%clk 0:01:40]}  Rf7 {[%clk 0:00:40]} 26. b4 {[%clk 0:01:17]}  Nd3 {[%clk 0:00:34]} 27. Nd4 {[%clk 0:00:55]}  Rg7 {[%clk 0:00:22]} 28. Bxd3 {[%clk 0:00:54]}  exd3 {[%clk 0:00:12]} 29. Qg2 {[%clk 0:00:53]}  Bb7 {[%clk 0:00:10]} 30. Bd2 {[%clk 0:00:40]}  Re8 {[%clk 0:00:09]} 31. Re1 {[%clk 0:00:33]}  Rxe1 {[%clk 0:00:08]} 32. Bxe1 {[%clk 0:00:33]}  Qf7 {[%clk 0:00:08]} 33. Ne3 {[%clk 0:00:31]}  Nxf4 {[%clk 0:00:07]} 34. Qf3 {[%clk 0:00:30]}  Nxd5 {[%clk 0:00:07]} 35. Nexf5 {[%clk 0:00:30]}  Ne7 {[%clk 0:00:05]} 36. Nxh6+ {[%clk 0:00:29]}  Kf8 {[%clk 0:00:04]} 37. Ne6+ {[%clk 0:00:26]}  Ke8 {[%clk 0:00:03]} 38. Qxf7+ {[%clk 0:00:21]}  Rxf7 {[%clk 0:00:03]} 39. Nxc7+ {[%clk 0:00:21]}  Kd7 {[%clk 0:00:03]} 40. Nxf7 {[%clk 0:00:21]}  Kxc7 {[%clk 0:00:02]} 41. g4 {[%clk 0:00:20]}  Nc6 {[%clk 0:00:02]} 42. Ng5 {[%clk 0:00:17]}  Nd4 {[%clk 0:00:02]} 43. Kg3 {[%clk 0:00:17]}  Kd7 {[%clk 0:00:01]} 44. h4 {[%clk 0:00:15]}  Ne6 {[%clk 0:00:01]} 45. Nxe6 {[%clk 0:00:15]} 1-0


[Site "https://www.chess.com"]

[Event "Titled Tuesday Blitz February 21 Early 2023"]
[White "Sanchez, Robert"]
[Black "Iskusnyh, Sergei"]
[WhiteFideId "2034360"]
[BlackFideId "4120027"]
[WhiteElo "1966"]
[BlackElo "2440"]
[Result "0-1"]
[Round "05"]
[TimeControl "180+2"]
[Date "2023.02.21"]
[WhiteClock "0:00:14"]
[BlackClock "0:00:13"]

1. e4 {[%clk 0:03:00]}  e6 {[%clk 0:02:57]} 2. d4 {[%clk 0:03:00]}  d5 {[%clk 0:02:56]} 3. Nc3 {[%clk 0:03:01]}  Nf6 {[%clk 0:02:55]} 4. Bg5 {[%clk 0:02:56]}  dxe4 {[%clk 0:02:54]} 5. Nxe4 {[%clk 0:02:56]}  Nbd7 {[%clk 0:02:54]} 6. Bd3 {[%clk 0:02:50]}  h6 {[%clk 0:02:48]} 7. Nxf6+ {[%clk 0:02:49]}  Nxf6 {[%clk 0:02:48]} 8. Be3 {[%clk 0:02:49]}  Bd6 {[%clk 0:02:29]} 9. h3 {[%clk 0:02:47]}  Nd5 {[%clk 0:02:20]} 10. Bd2 {[%clk 0:02:45]}  c5 {[%clk 0:02:13]} 11. Qg4 {[%clk 0:02:39]}  O-O {[%clk 0:01:47]} 12. dxc5 {[%clk 0:02:30]}  Bxc5 {[%clk 0:01:38]} 13. O-O-O {[%clk 0:02:25]}  Qf6 {[%clk 0:01:32]} 14. Nf3 {[%clk 0:02:21]}  Ba3 {[%clk 0:01:15]} 15. c3 {[%clk 0:02:04]}  Nxc3 {[%clk 0:01:06]} 16. bxa3 {[%clk 0:01:50]}  Nxd1 {[%clk 0:01:05]} 17. Kxd1 {[%clk 0:01:38]}  Bd7 {[%clk 0:00:48]} 18. Qe4 {[%clk 0:01:18]}  Qf5 {[%clk 0:00:33]} 19. Qe3 {[%clk 0:01:09]}  Ba4+ {[%clk 0:00:28]} 20. Ke2 {[%clk 0:01:08]}  Bb5 {[%clk 0:00:28]} 21. Rc1 {[%clk 0:00:57]}  Rad8 {[%clk 0:00:27]} 22. Bxb5 {[%clk 0:00:56]}  Qxb5+ {[%clk 0:00:26]} 23. Ke1 {[%clk 0:00:55]}  Rd5 {[%clk 0:00:26]} 24. Qe2 {[%clk 0:00:45]}  Qa4 {[%clk 0:00:24]} 25. Qe3 {[%clk 0:00:35]}  Rfd8 {[%clk 0:00:23]} 26. g4 {[%clk 0:00:26]}  Rd3 {[%clk 0:00:22]} 27. Qe2 {[%clk 0:00:24]}  Qxa3 {[%clk 0:00:21]} 28. Ng5 {[%clk 0:00:16]}  hxg5 {[%clk 0:00:16]} 29. Bxg5 {[%clk 0:00:16]}  Qa5+ {[%clk 0:00:13]} 30. Kf1 {[%clk 0:00:14]}  Qxg5 {[%clk 0:00:13]} 0-1


[Site "https://www.chess.com"]

[Event "Titled Tuesday Blitz February 21 Early 2023"]
[White "Mazurkiewicz, Michal"]
[Black "Spata, German"]
[WhiteFideId "1124943"]
[BlackFideId "113026"]
[WhiteElo "2145"]
[BlackElo "2383"]
[Result "0-1"]
[Round "05"]
[TimeControl "180+2"]
[Date "2023.02.21"]
[WhiteClock "0:00:03"]
[BlackClock "0:00:26"]

1. e4 {[%clk 0:02:59]}  e6 {[%clk 0:02:52]} 2. d3 {[%clk 0:02:59]}  c5 {[%clk 0:02:52]} 3. Nd2 {[%clk 0:03:00]}  Nc6 {[%clk 0:02:52]} 4. Ngf3 {[%clk 0:03:00]}  g6 {[%clk 0:02:52]} 5. g3 {[%clk 0:03:01]}  Bg7 {[%clk 0:02:52]} 6. Bg2 {[%clk 0:03:01]}  Nge7 {[%clk 0:02:53]} 7. O-O {[%clk 0:03:01]}  O-O {[%clk 0:02:53]} 8. Re1 {[%clk 0:03:02]}  e5 {[%clk 0:02:51]} 9. Nc4 {[%clk 0:03:00]}  d6 {[%clk 0:02:51]} 10. a4 {[%clk 0:03:00]}  h6 {[%clk 0:02:51]} 11. c3 {[%clk 0:02:57]}  Be6 {[%clk 0:02:48]} 12. a5 {[%clk 0:02:19]}  Bxc4 {[%clk 0:02:31]} 13. dxc4 {[%clk 0:02:19]}  Nxa5 {[%clk 0:02:31]} 14. Qa4 {[%clk 0:01:59]}  b6 {[%clk 0:02:29]} 15. Rd1 {[%clk 0:01:53]}  Qc7 {[%clk 0:02:21]} 16. Nd2 {[%clk 0:01:39]}  Rfd8 {[%clk 0:02:20]} 17. b4 {[%clk 0:01:39]}  cxb4 {[%clk 0:02:14]} 18. cxb4 {[%clk 0:01:36]}  Nxc4 {[%clk 0:02:14]} 19. Qc2 {[%clk 0:01:30]}  Rac8 {[%clk 0:02:10]} 20. Bf1 {[%clk 0:01:29]}  d5 {[%clk 0:01:48]} 21. exd5 {[%clk 0:01:00]}  Nxd2 {[%clk 0:01:45]} 22. Qxc7 {[%clk 0:00:59]}  Rxc7 {[%clk 0:01:45]} 23. Bxd2 {[%clk 0:00:53]}  Nxd5 {[%clk 0:01:24]} 24. Bg2 {[%clk 0:00:52]}  Rcd7 {[%clk 0:01:21]} 25. Be1 {[%clk 0:00:34]}  e4 {[%clk 0:01:09]} 26. Ra2 {[%clk 0:00:22]}  f5 {[%clk 0:00:59]} 27. Bf1 {[%clk 0:00:22]}  Kh7 {[%clk 0:00:51]} 28. Bb5 {[%clk 0:00:18]}  Rd6 {[%clk 0:00:42]} 29. Rxa7 {[%clk 0:00:10]}  Nf6 {[%clk 0:00:33]} 30. Rc1 {[%clk 0:00:04]}  Rd1 {[%clk 0:00:31]} 31. Rxd1 {[%clk 0:00:02]}  Rxd1 {[%clk 0:00:31]} 32. Kf1 {[%clk 0:00:03]}  Nd5 {[%clk 0:00:26]} 0-1


[Site "https://www.chess.com"]

[Event "Titled Tuesday Blitz February 21 Early 2023"]
[White "Arabidze, Meri"]
[Black "Balabayeva, Xeniya"]
[WhiteFideId "13604040"]
[BlackFideId "13719688"]
[WhiteElo "2441"]
[BlackElo "2191"]
[Result "0-1"]
[Round "05"]
[TimeControl "180+2"]
[Date "2023.02.21"]
[WhiteClock "0:00:03"]
[BlackClock "0:00:13"]

1. Nf3 {[%clk 0:02:56]}  d5 {[%clk 0:02:58]} 2. b3 {[%clk 0:02:56]}  Nf6 {[%clk 0:02:57]} 3. Bb2 {[%clk 0:02:56]}  e6 {[%clk 0:02:55]} 4. c4 {[%clk 0:02:56]}  c5 {[%clk 0:02:53]} 5. e3 {[%clk 0:02:57]}  Nc6 {[%clk 0:02:52]} 6. cxd5 {[%clk 0:02:57]}  Nxd5 {[%clk 0:02:37]} 7. Bb5 {[%clk 0:02:56]}  Bd7 {[%clk 0:02:34]} 8. O-O {[%clk 0:02:56]}  Be7 {[%clk 0:02:05]} 9. Bxg7 {[%clk 0:02:50]}  Rg8 {[%clk 0:02:05]} 10. Bb2 {[%clk 0:02:49]}  Bd6 {[%clk 0:01:44]} 11. Bd3 {[%clk 0:02:43]}  f5 {[%clk 0:01:34]} 12. Bc4 {[%clk 0:02:43]}  Nce7 {[%clk 0:01:28]} 13. Be5 {[%clk 0:02:37]}  Bc6 {[%clk 0:01:24]} 14. d4 {[%clk 0:02:24]}  Nxe3 {[%clk 0:00:45]} 15. fxe3 {[%clk 0:02:21]}  Bxe5 {[%clk 0:00:44]} 16. Bxe6 {[%clk 0:02:10]}  Rg6 {[%clk 0:00:44]} 17. Bf7+ {[%clk 0:01:42]}  Kxf7 {[%clk 0:00:40]} 18. Nxe5+ {[%clk 0:01:42]}  Kg7 {[%clk 0:00:40]} 19. Nxg6 {[%clk 0:01:43]}  Nxg6 {[%clk 0:00:29]} 20. dxc5 {[%clk 0:01:38]}  Qg5 {[%clk 0:00:27]} 21. Qe2 {[%clk 0:01:17]}  Re8 {[%clk 0:00:21]} 22. Qf2 {[%clk 0:00:41]}  Rxe3 {[%clk 0:00:17]} 23. Nd2 {[%clk 0:00:28]}  Nf4 {[%clk 0:00:17]} 24. h4 {[%clk 0:00:13]}  Qg4 {[%clk 0:00:15]} 25. Kh2 {[%clk 0:00:03]}  Rh3+ {[%clk 0:00:14]} 26. Kg1 {[%clk 0:00:02]}  Ne2+ {[%clk 0:00:15]} 27. Qxe2 {[%clk 0:00:02]}  Qxe2 {[%clk 0:00:15]} 28. Nf3 {[%clk 0:00:02]}  Bxf3 {[%clk 0:00:14]} 29. gxf3 {[%clk 0:00:03]}  Rg3+ {[%clk 0:00:13]} 0-1


[Site "https://www.chess.com"]

[Event "Titled Tuesday Blitz February 21 Early 2023"]
[White "Wadsworth, Matthew J"]
[Black "Ouakhir, Pierre Mehdi"]
[WhiteFideId "415804"]
[BlackFideId "9000437"]
[WhiteElo "2428"]
[BlackElo "2212"]
[Result "1/2-1/2"]
[Round "05"]
[TimeControl "180+2"]
[Date "2023.02.21"]
[WhiteClock "0:00:04"]
[BlackClock "0:00:09"]

1. Nc3 {[%clk 0:03:00]}  Nf6 {[%clk 0:02:59]} 2. d4 {[%clk 0:02:49]}  d5 {[%clk 0:02:58]} 3. Bf4 {[%clk 0:02:50]}  Bf5 {[%clk 0:02:49]} 4. e3 {[%clk 0:02:49]}  e6 {[%clk 0:02:47]} 5. f3 {[%clk 0:02:31]}  h6 {[%clk 0:02:45]} 6. g4 {[%clk 0:02:30]}  Bh7 {[%clk 0:02:44]} 7. h4 {[%clk 0:02:22]}  Bd6 {[%clk 0:02:39]} 8. Nh3 {[%clk 0:02:19]}  a6 {[%clk 0:02:34]} 9. Bd3 {[%clk 0:02:17]}  c5 {[%clk 0:02:32]} 10. Ne2 {[%clk 0:01:59]}  Nc6 {[%clk 0:02:22]} 11. c3 {[%clk 0:01:57]}  Bxd3 {[%clk 0:02:14]} 12. Qxd3 {[%clk 0:01:57]}  e5 {[%clk 0:02:13]} 13. dxe5 {[%clk 0:01:52]}  Nxe5 {[%clk 0:02:12]} 14. Bxe5 {[%clk 0:01:51]}  Bxe5 {[%clk 0:02:11]} 15. O-O-O {[%clk 0:01:49]}  Qa5 {[%clk 0:02:09]} 16. g5 {[%clk 0:01:43]}  hxg5 {[%clk 0:01:24]} 17. hxg5 {[%clk 0:01:44]}  c4 {[%clk 0:01:15]} 18. Qf5 {[%clk 0:01:36]}  Nd7 {[%clk 0:00:59]} 19. g6 {[%clk 0:01:32]}  O-O-O {[%clk 0:00:53]} 20. gxf7 {[%clk 0:01:21]}  Qxa2 {[%clk 0:00:53]} 21. Ng5 {[%clk 0:01:19]}  Rxh1 {[%clk 0:00:50]} 22. Rxh1 {[%clk 0:01:20]}  Qa1+ {[%clk 0:00:35]} 23. Qb1 {[%clk 0:01:19]}  Qxb1+ {[%clk 0:00:31]} 24. Kxb1 {[%clk 0:01:20]}  Rf8 {[%clk 0:00:30]} 25. Nd4 {[%clk 0:01:10]}  Bf6 {[%clk 0:00:20]} 26. Nde6 {[%clk 0:01:06]}  Bxg5 {[%clk 0:00:19]} 27. Nxg5 {[%clk 0:01:06]}  Ne5 {[%clk 0:00:20]} 28. Rh4 {[%clk 0:00:42]}  Kd7 {[%clk 0:00:17]} 29. Rf4 {[%clk 0:00:40]}  Ke7 {[%clk 0:00:15]} 30. Rf5 {[%clk 0:00:41]}  Nxf7 {[%clk 0:00:13]} 31. Rxd5 {[%clk 0:00:41]}  Nxg5 {[%clk 0:00:13]} 32. Rxg5 {[%clk 0:00:41]}  Rxf3 {[%clk 0:00:12]} 33. Rxg7+ {[%clk 0:00:41]}  Rf7 {[%clk 0:00:09]} 34. Rxf7+ {[%clk 0:00:24]}  Kxf7 {[%clk 0:00:10]} 35. Ka2 {[%clk 0:00:24]}  b5 {[%clk 0:00:08]} 36. Ka3 {[%clk 0:00:19]}  a5 {[%clk 0:00:09]} 37. b3 {[%clk 0:00:17]}  cxb3 {[%clk 0:00:09]} 38. Kxb3 {[%clk 0:00:17]}  Ke6 {[%clk 0:00:10]} 39. c4 {[%clk 0:00:16]}  b4 {[%clk 0:00:08]} 40. e4 {[%clk 0:00:15]}  Ke5 {[%clk 0:00:09]} 41. c5 {[%clk 0:00:14]}  Ke6 {[%clk 0:00:09]} 42. Kc4 {[%clk 0:00:14]}  Ke5 {[%clk 0:00:08]} 43. Kb3 {[%clk 0:00:11]}  Ke6 {[%clk 0:00:09]} 44. Ka4 {[%clk 0:00:04]}  Ke5 {[%clk 0:00:09]} 45. Kb3 {[%clk 0:00:04]} 1/2-1/2


[Site "https://www.chess.com"]

[Event "Titled Tuesday Blitz February 21 Early 2023"]
[White "Zacurdajev, Dmitry"]
[Black "Tologon tegin, Semetei"]
[WhiteFideId "4196309"]
[BlackFideId "13800574"]
[WhiteElo "2273"]
[BlackElo "2372"]
[Result "1-0"]
[Round "05"]
[TimeControl "180+2"]
[Date "2023.02.21"]
[WhiteClock "0:00:09"]
[BlackClock "0:00:03"]

1. d4 {[%clk 0:03:00]}  d5 {[%clk 0:02:55]} 2. c4 {[%clk 0:02:59]}  e6 {[%clk 0:02:56]} 3. Nc3 {[%clk 0:02:57]}  Nf6 {[%clk 0:02:55]} 4. Nf3 {[%clk 0:02:57]}  Nbd7 {[%clk 0:02:55]} 5. Bf4 {[%clk 0:02:55]}  Bb4 {[%clk 0:02:53]} 6. e3 {[%clk 0:02:48]}  O-O {[%clk 0:02:52]} 7. Qc2 {[%clk 0:02:44]}  c5 {[%clk 0:02:51]} 8. a3 {[%clk 0:02:38]}  Qa5 {[%clk 0:02:42]} 9. Rc1 {[%clk 0:02:31]}  Bxc3+ {[%clk 0:02:41]} 10. Qxc3 {[%clk 0:02:32]}  Qxc3+ {[%clk 0:02:41]} 11. Rxc3 {[%clk 0:02:26]}  cxd4 {[%clk 0:02:39]} 12. exd4 {[%clk 0:02:22]}  dxc4 {[%clk 0:02:35]} 13. Bxc4 {[%clk 0:02:23]}  Nb6 {[%clk 0:02:35]} 14. Be5 {[%clk 0:02:12]}  Nxc4 {[%clk 0:02:34]} 15. Rxc4 {[%clk 0:02:12]}  Nd5 {[%clk 0:02:34]} 16. O-O {[%clk 0:02:00]}  Bd7 {[%clk 0:02:33]} 17. Rfc1 {[%clk 0:01:58]}  Bb5 {[%clk 0:02:23]} 18. Rc5 {[%clk 0:01:57]}  Be2 {[%clk 0:02:23]} 19. Nd2 {[%clk 0:01:51]}  b6 {[%clk 0:02:22]} 20. Rc6 {[%clk 0:01:41]}  Bb5 {[%clk 0:02:22]} 21. R6c2 {[%clk 0:01:40]}  Rfd8 {[%clk 0:02:12]} 22. b3 {[%clk 0:01:25]}  Bd3 {[%clk 0:02:10]} 23. Rc6 {[%clk 0:01:23]}  Bb5 {[%clk 0:02:10]} 24. R6c2 {[%clk 0:01:17]}  f6 {[%clk 0:01:52]} 25. Bg3 {[%clk 0:01:13]}  Ne7 {[%clk 0:01:49]} 26. Rc7 {[%clk 0:01:09]}  Nf5 {[%clk 0:01:48]} 27. a4 {[%clk 0:01:01]}  Be8 {[%clk 0:01:31]} 28. Nf3 {[%clk 0:00:32]}  Bh5 {[%clk 0:01:26]} 29. Rb7 {[%clk 0:00:23]}  Bxf3 {[%clk 0:01:21]} 30. gxf3 {[%clk 0:00:24]}  g5 {[%clk 0:01:04]} 31. Rcc7 {[%clk 0:00:23]}  h5 {[%clk 0:01:02]} 32. h4 {[%clk 0:00:18]}  gxh4 {[%clk 0:00:59]} 33. Bxh4 {[%clk 0:00:18]}  Rxd4 {[%clk 0:00:44]} 34. Bxf6 {[%clk 0:00:17]}  Rd3 {[%clk 0:00:44]} 35. f4 {[%clk 0:00:15]}  Rf8 {[%clk 0:00:15]} 36. Be5 {[%clk 0:00:10]}  Rfd8 {[%clk 0:00:03]} 37. Rh7 {[%clk 0:00:09]} 1-0


[Site "https://www.chess.com"]